[Event "Titled Tuesday Blitz June 20 Late 2023"]
[White "Fiorito, Francisco"]
[Black "Mikhalsky, Vladimir"]
[WhiteFideId "180165"]
[BlackFideId "14144352"]
[WhiteElo "2319"]
[BlackElo "2236"]
[Result "0-1"]
[Round "3"]
[TimeControl "180+2"]
[Date "2023.06.20"]
[WhiteClock "0:00:07"]
[BlackClock "0:00:24"]
[Board "110"]

1. d4 {[%clk 0:03:00]}  Nf6 {[%clk 0:02:58]} 2. Nc3 {[%clk 0:02:59]}  g6 {[%clk 0:02:59]} 3. e4 {[%clk 0:02:58]}  d6 {[%clk 0:02:59]} 4. Be3 {[%clk 0:02:55]}  Bg7 {[%clk 0:02:59]} 5. Qd2 {[%clk 0:02:55]}  Ng4 {[%clk 0:02:57]} 6. Bg5 {[%clk 0:02:54]}  Nc6 {[%clk 0:02:56]} 7. h3 {[%clk 0:02:48]}  h6 {[%clk 0:02:47]} 8. Bh4 {[%clk 0:02:38]}  g5 {[%clk 0:02:46]} 9. Bg3 {[%clk 0:02:36]}  Nf6 {[%clk 0:02:46]} 10. Be2 {[%clk 0:02:32]}  Bd7 {[%clk 0:02:31]} 11. h4 {[%clk 0:02:26]}  g4 {[%clk 0:02:27]} 12. h5 {[%clk 0:02:12]}  a6 {[%clk 0:02:25]} 13. a4 {[%clk 0:02:09]}  b5 {[%clk 0:02:22]} 14. axb5 {[%clk 0:02:01]}  axb5 {[%clk 0:02:21]} 15. Rxa8 {[%clk 0:01:46]}  Qxa8 {[%clk 0:02:20]} 16. e5 {[%clk 0:01:23]}  b4 {[%clk 0:02:19]} 17. Nb5 {[%clk 0:00:56]}  Qa1+ {[%clk 0:02:14]} 18. Qd1 {[%clk 0:00:54]}  Qxd1+ {[%clk 0:02:12]} 19. Kxd1 {[%clk 0:00:52]}  Ne4 {[%clk 0:02:08]} 20. exd6 {[%clk 0:00:24]}  cxd6 {[%clk 0:01:57]} 21. c3 {[%clk 0:00:24]}  Nxg3 {[%clk 0:01:52]} 22. fxg3 {[%clk 0:00:23]}  O-O {[%clk 0:01:49]} 23. Rh4 {[%clk 0:00:19]}  f5 {[%clk 0:01:34]} 24. Bc4+ {[%clk 0:00:19]}  d5 {[%clk 0:01:26]} 25. Bxd5+ {[%clk 0:00:19]}  e6 {[%clk 0:01:27]} 26. Bc4 {[%clk 0:00:15]}  Bf6 {[%clk 0:01:23]} 27. Rh1 {[%clk 0:00:14]}  Rc8 {[%clk 0:01:19]} 28. Bd3 {[%clk 0:00:14]}  Ra8 {[%clk 0:01:16]} 29. Kc2 {[%clk 0:00:10]}  Ra1 {[%clk 0:01:09]} 30. Nd6 {[%clk 0:00:08]}  Kf8 {[%clk 0:01:06]} 31. Nc4 {[%clk 0:00:07]}  Ke7 {[%clk 0:01:05]} 32. Nd2 {[%clk 0:00:07]}  Na5 {[%clk 0:00:52]} 33. cxb4 {[%clk 0:00:07]}  Nc6 {[%clk 0:00:47]} 34. Nb3 {[%clk 0:00:06]}  Nxb4+ {[%clk 0:00:47]} 35. Kc3 {[%clk 0:00:06]}  Nd5+ {[%clk 0:00:42]} 36. Kc2 {[%clk 0:00:06]}  Ba4 {[%clk 0:00:40]} 37. Be2 {[%clk 0:00:03]}  Bxd4 {[%clk 0:00:35]} 38. Bb5 {[%clk 0:00:02]}  Bxb3+ {[%clk 0:00:34]} 39. Kxb3 {[%clk 0:00:03]}  Rxg1 {[%clk 0:00:34]} 40. Rh2 {[%clk 0:00:04]}  Rb1 {[%clk 0:00:31]} 41. Bd3 {[%clk 0:00:04]}  Rxb2+ {[%clk 0:00:31]} 42. Kc4 {[%clk 0:00:04]}  Bf6 {[%clk 0:00:29]} 43. Bxf5 {[%clk 0:00:05]}  Ne3+ {[%clk 0:00:27]} 44. Kd3 {[%clk 0:00:05]}  Nxf5 {[%clk 0:00:27]} 45. Rh1 {[%clk 0:00:06]}  Rxg2 {[%clk 0:00:27]} 46. Rb1 {[%clk 0:00:06]}  Rxg3+ {[%clk 0:00:27]} 47. Ke4 {[%clk 0:00:06]}  Re3+ {[%clk 0:00:25]} 48. Kf4 {[%clk 0:00:07]}  Be5+ {[%clk 0:00:24]} 49. Kxg4 {[%clk 0:00:07]}  Rg3# {[%clk 0:00:24]} 0-1


[Site "https://www.chess.com"]

[Event "Titled Tuesday Blitz June 20 Late 2023"]
[White "Maiti, Milind"]
[Black "Stachanczyk, Jacek"]
[WhiteFideId "2090767"]
[BlackFideId "1116657"]
[WhiteElo "2150"]
[BlackElo "2084"]
[Result "0-1"]
[Round "3"]
[TimeControl "180+2"]
[Date "2023.06.20"]
[WhiteClock "0:00:02"]
[BlackClock "0:00:16"]
[Board "111"]

1. d4 {[%clk 0:03:00]}  Nf6 {[%clk 0:02:57]} 2. c4 {[%clk 0:03:00]}  g6 {[%clk 0:02:57]} 3. Nc3 {[%clk 0:03:00]}  d5 {[%clk 0:02:57]} 4. cxd5 {[%clk 0:03:00]}  Nxd5 {[%clk 0:02:57]} 5. e4 {[%clk 0:03:00]}  Nxc3 {[%clk 0:02:57]} 6. bxc3 {[%clk 0:03:01]}  Bg7 {[%clk 0:02:58]} 7. Nf3 {[%clk 0:03:02]}  c5 {[%clk 0:02:57]} 8. Be3 {[%clk 0:03:02]}  Nc6 {[%clk 0:02:57]} 9. Be2 {[%clk 0:02:58]}  Bg4 {[%clk 0:02:55]} 10. e5 {[%clk 0:02:28]}  cxd4 {[%clk 0:02:17]} 11. cxd4 {[%clk 0:02:26]}  Qa5+ {[%clk 0:02:17]} 12. Qd2 {[%clk 0:02:17]}  Qxd2+ {[%clk 0:02:17]} 13. Nxd2 {[%clk 0:02:17]}  Be6 {[%clk 0:02:17]} 14. Bf3 {[%clk 0:01:46]}  Rd8 {[%clk 0:02:01]} 15. Nb3 {[%clk 0:01:39]}  Nb4 {[%clk 0:01:45]} 16. O-O {[%clk 0:01:31]}  Bd5 {[%clk 0:01:45]} 17. Rfc1 {[%clk 0:01:18]}  Bxf3 {[%clk 0:01:41]} 18. gxf3 {[%clk 0:01:19]}  Nd5 {[%clk 0:01:41]} 19. a4 {[%clk 0:01:13]}  O-O {[%clk 0:01:32]} 20. Na5 {[%clk 0:01:08]}  Rd7 {[%clk 0:01:26]} 21. Rab1 {[%clk 0:01:06]}  b6 {[%clk 0:01:25]} 22. Nc6 {[%clk 0:01:06]}  e6 {[%clk 0:01:06]} 23. Rc2 {[%clk 0:00:55]}  Re8 {[%clk 0:00:56]} 24. Rbc1 {[%clk 0:00:53]}  Bf8 {[%clk 0:00:53]} 25. Kf1 {[%clk 0:00:45]}  Ba3 {[%clk 0:00:53]} 26. Ra1 {[%clk 0:00:44]}  Bf8 {[%clk 0:00:52]} 27. Rac1 {[%clk 0:00:37]}  Kg7 {[%clk 0:00:52]} 28. Ke2 {[%clk 0:00:36]}  Ba3 {[%clk 0:00:52]} 29. Ra1 {[%clk 0:00:36]}  Bf8 {[%clk 0:00:52]} 30. a5 {[%clk 0:00:29]}  Rc8 {[%clk 0:00:51]} 31. axb6 {[%clk 0:00:29]}  axb6 {[%clk 0:00:51]} 32. Rac1 {[%clk 0:00:22]}  Rdc7 {[%clk 0:00:51]} 33. Bd2 {[%clk 0:00:16]}  Ba3 {[%clk 0:00:49]} 34. Ra1 {[%clk 0:00:16]}  Rxc6 {[%clk 0:00:41]} 35. Rxc6 {[%clk 0:00:16]}  Rxc6 {[%clk 0:00:42]} 36. Rxa3 {[%clk 0:00:16]}  h6 {[%clk 0:00:34]} 37. Rb3 {[%clk 0:00:16]}  Rc2 {[%clk 0:00:32]} 38. Kd3 {[%clk 0:00:15]}  Ra2 {[%clk 0:00:32]} 39. Rb1 {[%clk 0:00:15]}  Ra3+ {[%clk 0:00:30]} 40. Ke2 {[%clk 0:00:14]}  g5 {[%clk 0:00:30]} 41. Rc1 {[%clk 0:00:14]}  Kg6 {[%clk 0:00:30]} 42. Rc8 {[%clk 0:00:13]}  Ra2 {[%clk 0:00:27]} 43. Kd3 {[%clk 0:00:11]}  Ra3+ {[%clk 0:00:24]} 44. Ke2 {[%clk 0:00:11]}  Ra1 {[%clk 0:00:24]} 45. Rg8+ {[%clk 0:00:11]}  Kh7 {[%clk 0:00:24]} 46. Rf8 {[%clk 0:00:10]}  Kg7 {[%clk 0:00:23]} 47. Rc8 {[%clk 0:00:09]}  Rh1 {[%clk 0:00:23]} 48. Bc1 {[%clk 0:00:08]}  Rxh2 {[%clk 0:00:20]} 49. Ba3 {[%clk 0:00:09]}  h5 {[%clk 0:00:19]} 50. Bf8+ {[%clk 0:00:09]}  Kg6 {[%clk 0:00:19]} 51. Kd3 {[%clk 0:00:06]}  Rxf2 {[%clk 0:00:18]} 52. Ke4 {[%clk 0:00:06]}  Re2+ {[%clk 0:00:17]} 53. Kd3 {[%clk 0:00:06]}  Re3+ {[%clk 0:00:18]} 54. Kd2 {[%clk 0:00:06]}  Rxf3 {[%clk 0:00:19]} 55. Bd6 {[%clk 0:00:06]}  h4 {[%clk 0:00:18]} 56. Rg8+ {[%clk 0:00:07]}  Kh7 {[%clk 0:00:17]} 57. Rxg5 {[%clk 0:00:06]}  Rf5 {[%clk 0:00:16]} 58. Rg4 {[%clk 0:00:06]}  Rh5 {[%clk 0:00:16]} 59. Ke2 {[%clk 0:00:05]}  h3 {[%clk 0:00:16]} 60. Rg1 {[%clk 0:00:04]}  h2 {[%clk 0:00:17]} 61. Rh1 {[%clk 0:00:04]}  b5 {[%clk 0:00:16]} 62. Kf2 {[%clk 0:00:04]}  b4 {[%clk 0:00:16]} 63. Kg2 {[%clk 0:00:04]}  b3 {[%clk 0:00:17]} 64. Ba3 {[%clk 0:00:04]}  Nf4+ {[%clk 0:00:15]} 65. Kg3 {[%clk 0:00:04]}  Nd3 {[%clk 0:00:15]} 66. Kg4 {[%clk 0:00:04]}  Rh6 {[%clk 0:00:15]} 67. Kf3 {[%clk 0:00:04]}  b2 {[%clk 0:00:15]} 68. Ke3 {[%clk 0:00:04]}  Rh3+ {[%clk 0:00:15]} 69. Ke4 {[%clk 0:00:03]}  Kg6 {[%clk 0:00:15]} 70. d5 {[%clk 0:00:01]}  exd5+ {[%clk 0:00:15]} 71. Kd4 {[%clk 0:00:02]}  Kf5 {[%clk 0:00:15]} 72. Rf1+ {[%clk 0:00:01]}  Kg4 {[%clk 0:00:15]} 73. Rh1 {[%clk 0:00:02]}  Kf3 {[%clk 0:00:15]} 74. Kxd5 {[%clk 0:00:02]}  Kg2 {[%clk 0:00:15]} 75. Rd1 {[%clk 0:00:02]}  h1=Q {[%clk 0:00:16]} 76. Rxh1 {[%clk 0:00:02]}  Rxh1 {[%clk 0:00:16]} 77. Kd6 {[%clk 0:00:03]}  Nxe5 {[%clk 0:00:16]} 78. Ke7 {[%clk 0:00:02]}  b1=Q {[%clk 0:00:16]} 0-1


[Site "https://www.chess.com"]

[Event "Titled Tuesday Blitz June 20 Late 2023"]
[White "Bogaudinov, Rushan"]
[Black "Hajiyev, Kanan"]
[WhiteFideId "4129288"]
[BlackFideId "13404148"]
[WhiteElo "1967"]
[BlackElo "2115"]
[Result "1-0"]
[Round "3"]
[TimeControl "180+2"]
[Date "2023.06.20"]
[WhiteClock "0:00:18"]
[BlackClock "0:00:09"]
[Board "112"]

1. d4 {[%clk 0:02:58]}  Nf6 {[%clk 0:02:52]} 2. g3 {[%clk 0:02:58]}  e6 {[%clk 0:02:52]} 3. Bg2 {[%clk 0:02:58]}  c5 {[%clk 0:02:52]} 4. Nf3 {[%clk 0:02:58]}  Be7 {[%clk 0:02:51]} 5. O-O {[%clk 0:02:58]}  O-O {[%clk 0:02:51]} 6. c4 {[%clk 0:02:58]}  d5 {[%clk 0:02:44]} 7. cxd5 {[%clk 0:02:54]}  Nxd5 {[%clk 0:02:33]} 8. Nc3 {[%clk 0:02:50]}  cxd4 {[%clk 0:02:17]} 9. Nxd5 {[%clk 0:02:43]}  Qxd5 {[%clk 0:02:14]} 10. Qxd4 {[%clk 0:02:36]}  Rd8 {[%clk 0:02:03]} 11. Qxd5 {[%clk 0:02:35]}  Rxd5 {[%clk 0:02:04]} 12. Be3 {[%clk 0:02:26]}  Nc6 {[%clk 0:02:03]} 13. Rac1 {[%clk 0:02:17]}  Bd7 {[%clk 0:02:00]} 14. Nd2 {[%clk 0:02:12]}  Ra5 {[%clk 0:01:45]} 15. a3 {[%clk 0:02:09]}  Rd8 {[%clk 0:01:45]} 16. Nc4 {[%clk 0:02:02]}  Rb5 {[%clk 0:01:42]} 17. Rfd1 {[%clk 0:01:57]}  Kf8 {[%clk 0:01:17]} 18. b4 {[%clk 0:01:48]}  Ke8 {[%clk 0:00:58]} 19. h4 {[%clk 0:01:41]}  Bc8 {[%clk 0:00:33]} 20. Rxd8+ {[%clk 0:01:34]}  Kxd8 {[%clk 0:00:29]} 21. Rd1+ {[%clk 0:01:24]}  Ke8 {[%clk 0:00:26]} 22. Bxc6+ {[%clk 0:01:14]}  bxc6 {[%clk 0:00:27]} 23. Bxa7 {[%clk 0:01:13]}  c5 {[%clk 0:00:23]} 24. bxc5 {[%clk 0:00:59]}  Bxc5 {[%clk 0:00:22]} 25. Bxc5 {[%clk 0:00:57]}  Rxc5 {[%clk 0:00:23]} 26. Nd6+ {[%clk 0:00:57]}  Ke7 {[%clk 0:00:24]} 27. Nxc8+ {[%clk 0:00:54]}  Rxc8 {[%clk 0:00:24]} 28. Ra1 {[%clk 0:00:51]}  Rc2 {[%clk 0:00:19]} 29. e3 {[%clk 0:00:46]}  Kd6 {[%clk 0:00:19]} 30. a4 {[%clk 0:00:46]}  Kc6 {[%clk 0:00:19]} 31. Kg2 {[%clk 0:00:46]}  Kb6 {[%clk 0:00:19]} 32. Rb1+ {[%clk 0:00:43]}  Ka6 {[%clk 0:00:18]} 33. Rb8 {[%clk 0:00:42]}  h5 {[%clk 0:00:15]} 34. Ra8+ {[%clk 0:00:40]}  Kb7 {[%clk 0:00:15]} 35. Ra5 {[%clk 0:00:34]}  g6 {[%clk 0:00:15]} 36. Kf3 {[%clk 0:00:34]}  Ra2 {[%clk 0:00:14]} 37. e4 {[%clk 0:00:31]}  Kb6 {[%clk 0:00:15]} 38. Ra8 {[%clk 0:00:30]}  Kb7 {[%clk 0:00:16]} 39. Rf8 {[%clk 0:00:28]}  Rxa4 {[%clk 0:00:15]} 40. Rxf7+ {[%clk 0:00:28]}  Kc6 {[%clk 0:00:16]} 41. Rf6 {[%clk 0:00:28]}  Kd6 {[%clk 0:00:16]} 42. Rxg6 {[%clk 0:00:28]}  Ke5 {[%clk 0:00:16]} 43. Rg5+ {[%clk 0:00:28]}  Kf6 {[%clk 0:00:17]} 44. Rxh5 {[%clk 0:00:27]}  Ra2 {[%clk 0:00:17]} 45. Rb5 {[%clk 0:00:25]}  Ra3+ {[%clk 0:00:16]} 46. Kg2 {[%clk 0:00:24]}  Ra2 {[%clk 0:00:17]} 47. g4 {[%clk 0:00:24]}  Ra4 {[%clk 0:00:15]} 48. f3 {[%clk 0:00:23]}  Ra1 {[%clk 0:00:15]} 49. Kg3 {[%clk 0:00:23]}  Rg1+ {[%clk 0:00:15]} 50. Kf4 {[%clk 0:00:23]}  Ra1 {[%clk 0:00:16]} 51. h5 {[%clk 0:00:23]}  Rh1 {[%clk 0:00:15]} 52. g5+ {[%clk 0:00:19]}  Kf7 {[%clk 0:00:15]} 53. h6 {[%clk 0:00:18]}  Kg6 {[%clk 0:00:15]} 54. Re5 {[%clk 0:00:17]}  Rh4+ {[%clk 0:00:15]} 55. Kg3 {[%clk 0:00:17]}  Rh1 {[%clk 0:00:14]} 56. f4 {[%clk 0:00:17]}  Rg1+ {[%clk 0:00:13]} 57. Kf2 {[%clk 0:00:17]}  Rg4 {[%clk 0:00:13]} 58. Rxe6+ {[%clk 0:00:17]}  Kf7 {[%clk 0:00:12]} 59. Rf6+ {[%clk 0:00:18]}  Ke7 {[%clk 0:00:13]} 60. Kf3 {[%clk 0:00:19]}  Rh4 {[%clk 0:00:13]} 61. e5 {[%clk 0:00:19]}  Rh3+ {[%clk 0:00:13]} 62. Ke4 {[%clk 0:00:19]}  Rh1 {[%clk 0:00:14]} 63. Kf5 {[%clk 0:00:19]}  Rh4 {[%clk 0:00:14]} 64. Rb6 {[%clk 0:00:19]}  Rh1 {[%clk 0:00:14]} 65. Rb7+ {[%clk 0:00:19]}  Kf8 {[%clk 0:00:15]} 66. e6 {[%clk 0:00:20]}  Re1 {[%clk 0:00:15]} 67. Kf6 {[%clk 0:00:20]}  Kg8 {[%clk 0:00:14]} 68. g6 {[%clk 0:00:20]}  Rxe6+ {[%clk 0:00:09]} 69. Kxe6 {[%clk 0:00:19]}  Kf8 {[%clk 0:00:09]} 70. f5 {[%clk 0:00:18]}  Ke8 {[%clk 0:00:09]} 71. Rb8# {[%clk 0:00:18]} 1-0


[Site "https://www.chess.com"]

[Event "Titled Tuesday Blitz June 20 Late 2023"]
[White "Isajevsky, Anton"]
[Black "Silva Lucena, Cristian"]
[WhiteFideId "4142500"]
[BlackFideId "2232588"]
[WhiteElo "2510"]
[BlackElo "2223"]
[Result "1-0"]
[Round "3"]
[TimeControl "180+2"]
[Date "2023.06.20"]
[WhiteClock "0:00:06"]
[BlackClock "0:00:31"]
[Board "113"]

1. c4 {[%clk 0:02:56]}  e5 {[%clk 0:02:53]} 2. g3 {[%clk 0:02:56]}  Nc6 {[%clk 0:02:52]} 3. Bg2 {[%clk 0:02:56]}  Bc5 {[%clk 0:02:52]} 4. Nc3 {[%clk 0:02:56]}  f5 {[%clk 0:02:52]} 5. d3 {[%clk 0:02:42]}  Nf6 {[%clk 0:02:51]} 6. Nf3 {[%clk 0:02:39]}  O-O {[%clk 0:02:48]} 7. O-O {[%clk 0:02:36]}  d6 {[%clk 0:02:47]} 8. Na4 {[%clk 0:02:34]}  Bb6 {[%clk 0:02:46]} 9. Nxb6 {[%clk 0:02:33]}  axb6 {[%clk 0:02:47]} 10. e3 {[%clk 0:02:20]}  Qe8 {[%clk 0:02:37]} 11. b3 {[%clk 0:02:19]}  Qh5 {[%clk 0:02:34]} 12. Nd2 {[%clk 0:02:06]}  Qh6 {[%clk 0:02:25]} 13. Nb1 {[%clk 0:02:06]}  Qg6 {[%clk 0:02:11]} 14. Nc3 {[%clk 0:02:04]}  Ne7 {[%clk 0:02:09]} 15. f4 {[%clk 0:01:41]}  c6 {[%clk 0:01:57]} 16. Bb2 {[%clk 0:01:30]}  Ng4 {[%clk 0:01:55]} 17. Qd2 {[%clk 0:01:29]}  Qh6 {[%clk 0:01:54]} 18. h3 {[%clk 0:01:28]}  Nf6 {[%clk 0:01:53]} 19. a4 {[%clk 0:01:21]}  Qg6 {[%clk 0:01:52]} 20. Kh2 {[%clk 0:01:18]}  h5 {[%clk 0:01:44]} 21. Rae1 {[%clk 0:01:01]}  h4 {[%clk 0:01:43]} 22. Qf2 {[%clk 0:00:52]}  hxg3+ {[%clk 0:01:41]} 23. Qxg3 {[%clk 0:00:52]}  Qxg3+ {[%clk 0:01:38]} 24. Kxg3 {[%clk 0:00:53]}  Ng6 {[%clk 0:01:32]} 25. Ba3 {[%clk 0:00:43]}  Rd8 {[%clk 0:01:31]} 26. Bf3 {[%clk 0:00:41]}  Kf7 {[%clk 0:01:26]} 27. h4 {[%clk 0:00:39]}  Be6 {[%clk 0:01:16]} 28. h5 {[%clk 0:00:38]}  Ne7 {[%clk 0:01:12]} 29. e4 {[%clk 0:00:34]}  exf4+ {[%clk 0:01:10]} 30. Kxf4 {[%clk 0:00:33]}  fxe4 {[%clk 0:01:10]} 31. Nxe4 {[%clk 0:00:30]}  Nxe4 {[%clk 0:01:08]} 32. Bxe4 {[%clk 0:00:30]}  Ng8 {[%clk 0:01:02]} 33. Kg5+ {[%clk 0:00:26]}  Nf6 {[%clk 0:01:01]} 34. Bg6+ {[%clk 0:00:24]}  Ke7 {[%clk 0:00:57]} 35. Bf5 {[%clk 0:00:24]}  Ra5 {[%clk 0:00:54]} 36. Rxe6+ {[%clk 0:00:23]}  Kf7 {[%clk 0:00:53]} 37. Rfe1 {[%clk 0:00:20]}  Rh8 {[%clk 0:00:52]} 38. Re7+ {[%clk 0:00:16]}  Kf8 {[%clk 0:00:52]} 39. Kf4 {[%clk 0:00:09]}  Rxh5 {[%clk 0:00:50]} 40. Bg6 {[%clk 0:00:07]}  Rh4+ {[%clk 0:00:47]} 41. Kf3 {[%clk 0:00:07]}  Re5 {[%clk 0:00:38]} 42. R1xe5 {[%clk 0:00:06]}  dxe5 {[%clk 0:00:39]} 43. Rxb7+ {[%clk 0:00:06]}  c5 {[%clk 0:00:37]} 44. Rxb6 {[%clk 0:00:06]}  Nd7 {[%clk 0:00:36]} 45. Rb7 {[%clk 0:00:06]}  Ke7 {[%clk 0:00:37]} 46. Bxc5+ {[%clk 0:00:06]}  Ke6 {[%clk 0:00:35]} 47. Be3 {[%clk 0:00:06]}  Rh3+ {[%clk 0:00:35]} 48. Ke2 {[%clk 0:00:06]}  Nf6 {[%clk 0:00:34]} 49. Be4 {[%clk 0:00:06]}  Rh2+ {[%clk 0:00:34]} 50. Kd1 {[%clk 0:00:05]}  Nxe4 {[%clk 0:00:34]} 51. dxe4 {[%clk 0:00:05]}  Rb2 {[%clk 0:00:33]} 52. Kc1 {[%clk 0:00:05]}  Re2 {[%clk 0:00:33]} 53. Bd2 {[%clk 0:00:05]}  Rxe4 {[%clk 0:00:33]} 54. Rxg7 {[%clk 0:00:05]}  Rh4 {[%clk 0:00:32]} 55. Rg3 {[%clk 0:00:05]}  e4 {[%clk 0:00:32]} 56. Kc2 {[%clk 0:00:06]}  Ke5 {[%clk 0:00:32]} 57. a5 {[%clk 0:00:06]}  Rh6 {[%clk 0:00:31]} 58. Rg5+ {[%clk 0:00:06]}  Kd4 {[%clk 0:00:31]} 59. Rd5# {[%clk 0:00:06]} 1-0


[Site "https://www.chess.com"]

[Event "Titled Tuesday Blitz June 20 Late 2023"]
[White "Banzea, Alexandru-Bogdan"]
[Black "Petukhov, Dmitry"]
[WhiteFideId "1232622"]
[BlackFideId "4142748"]
[WhiteElo "2294"]
[BlackElo "2311"]
[Result "0-1"]
[Round "3"]
[TimeControl "180+2"]
[Date "2023.06.20"]
[WhiteClock "0:00:07"]
[BlackClock "0:00:14"]
[Board "114"]

1. d4 {[%clk 0:03:00]}  Nf6 {[%clk 0:02:58]} 2. Bf4 {[%clk 0:02:56]}  d5 {[%clk 0:02:57]} 3. Nf3 {[%clk 0:02:56]}  Bf5 {[%clk 0:02:43]} 4. e3 {[%clk 0:02:53]}  e6 {[%clk 0:02:42]} 5. Bd3 {[%clk 0:02:54]}  Bg6 {[%clk 0:02:42]} 6. Ne5 {[%clk 0:02:53]}  Bd6 {[%clk 0:02:40]} 7. Nd2 {[%clk 0:02:51]}  Nbd7 {[%clk 0:02:40]} 8. Nxg6 {[%clk 0:02:51]}  hxg6 {[%clk 0:02:40]} 9. Bxd6 {[%clk 0:02:43]}  cxd6 {[%clk 0:02:41]} 10. O-O {[%clk 0:02:38]}  e5 {[%clk 0:02:33]} 11. c4 {[%clk 0:02:35]}  exd4 {[%clk 0:02:20]} 12. exd4 {[%clk 0:02:34]}  dxc4 {[%clk 0:02:19]} 13. Re1+ {[%clk 0:02:15]}  Kf8 {[%clk 0:02:18]} 14. Nxc4 {[%clk 0:02:14]}  Nb6 {[%clk 0:02:12]} 15. Qf3 {[%clk 0:01:55]}  Nxc4 {[%clk 0:02:05]} 16. Bxc4 {[%clk 0:01:55]}  d5 {[%clk 0:02:06]} 17. Bb3 {[%clk 0:01:45]}  Rh4 {[%clk 0:01:55]} 18. Qc3 {[%clk 0:01:27]}  Rc8 {[%clk 0:01:50]} 19. Qb4+ {[%clk 0:01:26]}  Kg8 {[%clk 0:01:44]} 20. Qxb7 {[%clk 0:01:21]}  Rxd4 {[%clk 0:01:32]} 21. Re7 {[%clk 0:01:20]}  Qf8 {[%clk 0:00:50]} 22. Qxa7 {[%clk 0:01:12]}  Rd2 {[%clk 0:00:40]} 23. Rae1 {[%clk 0:01:06]}  Rxb2 {[%clk 0:00:37]} 24. g4 {[%clk 0:00:52]}  Nxg4 {[%clk 0:00:23]} 25. Bxd5 {[%clk 0:00:47]}  Nh6 {[%clk 0:00:24]} 26. Qd7 {[%clk 0:00:27]}  Kh7 {[%clk 0:00:19]} 27. Bxf7 {[%clk 0:00:18]}  Rcc2 {[%clk 0:00:18]} 28. R1e6 {[%clk 0:00:13]}  Rxf2 {[%clk 0:00:14]} 29. Bxg6+ {[%clk 0:00:13]}  Kh8 {[%clk 0:00:14]} 30. Re8 {[%clk 0:00:07]}  Rf1# {[%clk 0:00:14]} 0-1


[Site "https://www.chess.com"]

[Event "Titled Tuesday Blitz June 20 Late 2023"]
[White "Sharan, Rao"]
[Black "crosky"]
[WhiteFideId "5073464"]
[WhiteElo "2149"]
[BlackElo "2352"]
[Result "1-0"]
[Round "3"]
[TimeControl "180+2"]
[Date "2023.06.20"]
[WhiteClock "0:01:43"]
[BlackClock "0:00:32"]
[Board "115"]

1. d4 {[%clk 0:02:57]}  Nf6 {[%clk 0:02:58]} 2. Nc3 {[%clk 0:02:57]}  d5 {[%clk 0:02:58]} 3. Bf4 {[%clk 0:02:57]}  c5 {[%clk 0:02:58]} 4. e4 {[%clk 0:02:57]}  Nxe4 {[%clk 0:02:58]} 5. Nxe4 {[%clk 0:02:56]}  dxe4 {[%clk 0:02:59]} 6. dxc5 {[%clk 0:02:56]}  Qa5+ {[%clk 0:02:58]} 7. c3 {[%clk 0:02:57]}  Qxc5 {[%clk 0:02:57]} 8. Qa4+ {[%clk 0:02:57]}  Nc6 {[%clk 0:02:57]} 9. Qxe4 {[%clk 0:02:58]}  Bf5 {[%clk 0:02:57]} 10. Qe3 {[%clk 0:02:57]}  e6 {[%clk 0:02:54]} 11. Nf3 {[%clk 0:02:55]}  O-O-O {[%clk 0:02:41]} 12. Be2 {[%clk 0:02:52]}  f6 {[%clk 0:02:30]} 13. O-O {[%clk 0:02:39]}  Qxe3 {[%clk 0:02:30]} 14. Bxe3 {[%clk 0:02:40]}  g5 {[%clk 0:02:22]} 15. a4 {[%clk 0:02:39]}  Bd6 {[%clk 0:02:22]} 16. a5 {[%clk 0:02:39]}  h5 {[%clk 0:02:08]} 17. a6 {[%clk 0:02:37]}  b6 {[%clk 0:02:09]} 18. Bb5 {[%clk 0:02:36]}  Kc7 {[%clk 0:02:08]} 19. Rfe1 {[%clk 0:02:26]}  e5 {[%clk 0:01:32]} 20. c4 {[%clk 0:02:10]}  h4 {[%clk 0:01:31]} 21. Rac1 {[%clk 0:02:09]}  g4 {[%clk 0:01:30]} 22. Nd2 {[%clk 0:01:57]}  Bb4 {[%clk 0:01:18]} 23. Red1 {[%clk 0:01:55]}  Rd3 {[%clk 0:01:02]} 24. c5 {[%clk 0:01:43]}  Nd4 {[%clk 0:00:45]} 25. Bxd3 {[%clk 0:01:42]}  Bxd3 {[%clk 0:00:42]} 26. Bxd4 {[%clk 0:01:42]}  exd4 {[%clk 0:00:42]} 27. cxb6+ {[%clk 0:01:42]}  Kxb6 {[%clk 0:00:43]} 28. Nc4+ {[%clk 0:01:42]}  Bxc4 {[%clk 0:00:32]} 29. Rxc4 {[%clk 0:01:43]} 1-0


[Site "https://www.chess.com"]

[Event "Titled Tuesday Blitz June 20 Late 2023"]
[White "Perez, Maximiliano"]
[Black "Blackburn, Jonathan L B"]
[WhiteFideId "117234"]
[BlackFideId "1801090"]
[WhiteElo "2334"]
[BlackElo "2178"]
[Result "1-0"]
[Round "3"]
[TimeControl "180+2"]
[Date "2023.06.20"]
[WhiteClock "0:00:23"]
[BlackClock "0:00:00"]
[Board "117"]

1. e4 {[%clk 0:03:00]}  e5 {[%clk 0:03:00]} 2. Nf3 {[%clk 0:02:57]}  Nf6 {[%clk 0:03:00]} 3. Nxe5 {[%clk 0:02:56]}  Nc6 {[%clk 0:03:01]} 4. Nxc6 {[%clk 0:02:56]}  dxc6 {[%clk 0:03:02]} 5. Nc3 {[%clk 0:02:55]}  Bc5 {[%clk 0:03:02]} 6. d3 {[%clk 0:02:50]}  Ng4 {[%clk 0:02:57]} 7. Be3 {[%clk 0:02:39]}  Nxe3 {[%clk 0:02:41]} 8. fxe3 {[%clk 0:02:40]}  Bxe3 {[%clk 0:02:42]} 9. Qf3 {[%clk 0:02:38]}  Qg5 {[%clk 0:02:31]} 10. Be2 {[%clk 0:02:26]}  h5 {[%clk 0:02:16]} 11. h3 {[%clk 0:02:09]}  Be6 {[%clk 0:02:09]} 12. Nd1 {[%clk 0:02:08]}  Bd2+ {[%clk 0:02:01]} 13. Kf2 {[%clk 0:02:08]}  f5 {[%clk 0:01:33]} 14. Rf1 {[%clk 0:01:57]}  O-O-O {[%clk 0:01:17]} 15. Kg1 {[%clk 0:01:47]}  fxe4 {[%clk 0:01:05]} 16. dxe4 {[%clk 0:01:48]}  Rdf8 {[%clk 0:00:44]} 17. Qa3 {[%clk 0:01:35]}  Rxf1+ {[%clk 0:00:39]} 18. Bxf1 {[%clk 0:01:36]}  Qf4 {[%clk 0:00:28]} 19. Qf3 {[%clk 0:01:03]}  Qxf3 {[%clk 0:00:24]} 20. gxf3 {[%clk 0:01:04]}  Rf8 {[%clk 0:00:21]} 21. Kf2 {[%clk 0:01:02]}  g5 {[%clk 0:00:19]} 22. Ke2 {[%clk 0:00:53]}  Bb4 {[%clk 0:00:11]} 23. Ne3 {[%clk 0:00:47]}  Bc5 {[%clk 0:00:10]} 24. b3 {[%clk 0:00:42]}  a5 {[%clk 0:00:07]} 25. Bg2 {[%clk 0:00:37]}  Bxe3 {[%clk 0:00:06]} 26. Kxe3 {[%clk 0:00:38]}  Rf4 {[%clk 0:00:06]} 27. Rg1 {[%clk 0:00:37]}  Rh4 {[%clk 0:00:04]} 28. Bf1 {[%clk 0:00:35]}  Bxh3 {[%clk 0:00:04]} 29. Bxh3+ {[%clk 0:00:36]}  Rxh3 {[%clk 0:00:04]} 30. Rxg5 {[%clk 0:00:37]}  Rh2 {[%clk 0:00:04]} 31. f4 {[%clk 0:00:23]}  h4 {[%clk 0:00:00]} 32. f5 {[%clk 0:00:23]} 1-0


[Site "https://www.chess.com"]